fUST/lending_fUST_20250209
["ID","MTS","AMOUNT","RATE_DAILY","PERIOD"]
[352441686,1739110247970,-500.0,0.00010958,2]
[352441688,1739110247981,-501.3908894,0.00010958,2]
[352441690,1739110247992,-500.0,0.00010958,2]
[352441692,1739110248010,-500.0,0.00010958,2]
[352441694,1739110248021,-500.0,0.00010958,2]
[352441696,1739110248033,-500.0,0.00010958,2]
[352441698,1739110248044,-500.0,0.00010958,2]
[352441700,1739110248057,-500.0,0.00010958,2]
[352441702,1739110248067,-582.38,0.00010958,2]
[352441704,1739110248076,-500.0,0.00010958,2]
[352441706,1739110248085,-500.0,0.00010958,2]
[352441708,1739110248094,-500.56720214,0.00010958,2]
[352441710,1739110248104,-502.01419644,0.00010958,2]
[352441712,1739110248115,-500.0,0.00010958,2]
[352441714,1739110248125,-500.0,0.00010958,2]
[352441716,1739110248136,-500.0,0.00010958,2]
[352441718,1739110248148,-502.18413455,0.00010958,2]
[352441720,1739110248159,-500.0,0.00010958,2]
[352441722,1739110248171,-500.0,0.00010958,2]
[352441724,1739110248181,-500.88703629,0.00010958,2]
[352441726,1739110248191,-500.0,0.00010958,2]
[352441728,1739110248201,-500.0,0.00010958,2]
[352441730,1739110248211,-500.78198543,0.00010958,2]
[352441732,1739110248223,-500.0,0.00010958,2]
[352441734,1739110248233,-500.0,0.00010958,2]
[352441736,1739110248243,-500.0,0.00010958,2]
[352441738,1739110248254,-500.0,0.00010958,2]
[352441740,1739110248263,-623.8491984,0.00010958,2]
[352441742,1739110248273,-500.0,0.00010958,2]
[352441744,1739110248283,-500.0,0.00010958,2]
[352441746,1739110248293,-556.90349065,0.00010958,2]
[352441748,1739110248302,-500.0,0.00010958,2]
[352441749,1739110248312,-647.25378339,0.00010958,2]
[352441751,1739110248323,-500.0,0.00010958,2]
[352441753,1739110248333,-500.0,0.00010958,2]
[352441755,1739110248343,-500.0,0.00010958,2]
[352441757,1739110248354,-500.0,0.00010958,2]
[352441759,1739110248365,-500.0,0.00010958,2]
[352441761,1739110248374,-500.0,0.00010958,2]
[352441763,1739110248384,-500.0,0.00010958,2]
[352441765,1739110248394,-541.00905969,0.00010958,2]
[352441767,1739110248404,-500.0,0.00010958,2]
[352441769,1739110248415,-500.63205692,0.00010958,2]
[352441771,1739110248426,-500.0,0.00010958,2]
[352441773,1739110248436,-500.0,0.00010958,2]
[352441775,1739110248447,-500.0,0.00010958,2]
[352441777,1739110248457,-500.0,0.00010958,2]
[352441779,1739110248467,-500.0,0.00010958,2]
[352441781,1739110248478,-150.47042938,0.00010958,2]
[352441783,1739110248489,-501.26928436,0.00010958,2]
[352441785,1739110248500,-500.0,0.00010958,2]
[352441787,1739110248513,-500.0,0.00010958,2]
[352441789,1739110248525,-500.0,0.00010958,2]
[352441791,1739110248534,-274.0568178,0.00010958,2]
[352441793,1739110248546,-500.0,0.00010958,2]
[352441795,1739110248558,-500.0,0.00010958,2]
[352441797,1739110248569,-500.7081144,0.00010958,2]
[352441799,1739110248580,-500.0,0.00010958,2]
[352441801,1739110248592,-344.08271797,0.00010958,2]
[352441803,1739110248605,-500.0,0.00010958,2]
[352441805,1739110248615,-500.0,0.00010958,2]
[352441807,1739110248625,-500.0,0.00010958,2]
[352441809,1739110248634,-500.0,0.00010958,2]
[352441811,1739110248644,-500.0,0.00010958,2]
[352441813,1739110248656,-500.0,0.00010958,2]
[352441815,1739110248666,-500.0,0.00010958,2]
[352441817,1739110248675,-500.0,0.00010958,2]
[352441819,1739110248685,-502.75084783,0.00010958,2]
[352441821,1739110248696,-500.0,0.00010958,2]
[352441823,1739110248706,-604.78941811,0.00010958,2]
[352441825,1739110248716,-500.0,0.00010958,2]
[352441827,1739110248726,-500.0,0.00010958,2]
[352441829,1739110248737,-500.0,0.00010958,2]
[352441831,1739110248747,-501.30158881,0.00010958,2]
[352441833,1739110248757,-500.0,0.00010958,2]
[352441835,1739110248767,-500.0,0.00010958,2]
[352441837,1739110248779,-1091.19,0.00010958,2]
[352441839,1739110248788,-500.0,0.00010958,2]
[352441841,1739110248799,-500.0,0.00010958,2]
[352441843,1739110248812,-500.0,0.00010958,2]
[352441845,1739110248822,-448.57266351,0.00010958,2]
[352441847,1739110248832,-500.0,0.00010958,2]
[352441849,1739110248842,-500.0,0.00010958,2]
[352441851,1739110248854,-409.94004726,0.00010958,2]
[352443565,1739111416991,1082.87696484,0.00018,120]
[352443621,1739111432932,-612.75483541,8.705e-05,2]
[352443637,1739111438795,-4387.24516459,8.705e-05,2]
[352443639,1739111438805,-250.0,8.82e-05,2]
[352443641,1739111438814,-1700.0,8.972e-05,2]
[352443643,1739111438824,-300.0,9.254e-05,2]
[352443644,1739111438833,-24900.0,9.255e-05,2]
[352443645,1739111438842,-3923.1752,9.486e-05,2]
[352443646,1739111438851,-420.0,0.0001018,2]
[352443647,1739111438861,-1859.86124302,0.0001031,2]
[352443648,1739111438871,-1700.0,0.00010342,2]
[352443649,1739111438880,-156.416,0.0001041,2]
[352443650,1739111438888,-308.9354689,0.00010411,2]
[352443651,1739111438898,-215.8194901,0.00010411,2]
[352443652,1739111438907,-215.8194901,0.00010411,2]
[352443653,1739111438917,-215.8194901,0.00010411,2]
[352443654,1739111438926,-500.0,0.00010473,2]
[352443655,1739111438936,-500.0,0.00010473,2]
[352443656,1739111438945,-500.0,0.00010473,2]
[352443657,1739111438955,-500.0,0.00010473,2]
[352443658,1739111438964,-635.40105832,0.00010473,2]
[352443659,1739111438974,-500.0,0.00010473,2]
[352443660,1739111438983,-500.0,0.00010473,2]
[352443661,1739111438993,-397.8577193,0.00010473,2]
[352443662,1739111439003,-500.0,0.00010473,2]
[352443663,1739111439012,-500.0,0.00010473,2]
[352443664,1739111439021,-151.0,0.00010473,2]
[352443665,1739111439031,-500.0,0.00010473,2]
[352443666,1739111439040,-500.0,0.00010473,2]
[352443667,1739111439050,-500.0,0.00010473,2]
[352443668,1739111439059,-614.78388802,0.00010473,2]
[352443669,1739111439070,-162.80473868,0.00010473,2]
[352443670,1739111439079,-500.0,0.00010473,2]
[352443671,1739111439089,-500.19739299,0.00010473,2]
[352443672,1739111439099,-500.0,0.00010473,2]
[352443673,1739111439109,-219.35186006,0.00010473,2]
[352443674,1739111439118,-600.61371956,0.00010473,2]
[352443675,1739111439127,-500.0,0.00010473,2]
[352443676,1739111439136,-253.16990486,0.00010473,2]
[352443677,1739111439146,-500.0,0.00010473,2]
[352443678,1739111439155,-267.84792423,0.00010473,2]
[352443679,1739111439165,-500.0,0.00010473,2]
[352443680,1739111439174,-168.06785083,0.00010473,2]
[352443681,1739111439184,-159.05721855,0.00010473,2]
[352443682,1739111439194,-218.17082428,0.00010473,2]
[352443683,1739111439204,-500.0,0.00010473,2]
[352443684,1739111439213,-500.0,0.00010473,2]
[352443685,1739111439223,-540.15540604,0.00010473,2]
[352443686,1739111439232,-500.0,0.00010473,2]
[352443687,1739111439242,-1150.07,0.00010473,2]
[352443688,1739111439251,-500.0,0.00010499,2]
[352443689,1739111439260,-503.65935533,0.00010499,2]
[352443690,1739111439270,-405.16909738,0.00010499,2]
[352443691,1739111439280,-500.0,0.00010499,2]
[352443692,1739111439289,-500.0,0.00010499,2]
[352443693,1739111439298,-500.0,0.00010499,2]
[352443694,1739111439308,-500.0,0.00010499,2]
[352443695,1739111439319,-201.61593999,0.00010499,2]
[352443696,1739111439329,-500.0,0.00010499,2]
[352443697,1739111439338,-500.0,0.00010499,2]
[352443698,1739111439347,-500.0,0.00010499,2]
[352443699,1739111439357,-500.0,0.00010499,2]
[352443700,1739111439366,-500.0,0.00010499,2]
[352443701,1739111439507,-500.0,0.00010499,2]
[352443702,1739111439517,-500.0,0.00010499,2]
[352443703,1739111439526,-500.0,0.00010499,2]
[352443704,1739111439535,-500.0,0.00010499,2]
[352443705,1739111439545,-500.0,0.00010499,2]
[352443706,1739111439556,-500.0,0.00010499,2]
[352443707,1739111439567,-500.0,0.00010499,2]
[352443708,1739111439576,-500.0,0.00010499,2]
[352443709,1739111439586,-500.0,0.00010499,2]
[352443710,1739111439596,-500.0,0.00010499,2]
[352443711,1739111439606,-500.0,0.00010499,2]
[352443712,1739111439615,-347.9573604,0.00010499,2]
[352443713,1739111439624,-77.53268632,0.00010499,2]
[352443791,1739111441205,-422.46731368,0.00010499,2]
[352443793,1739111441215,-153.03237501,0.00010499,2]
[352443795,1739111441225,-500.0,0.00010499,2]
[352443797,1739111441234,-500.0,0.00010499,2]
[352443799,1739111441243,-500.0,0.00010499,2]
[352443801,1739111441252,-500.0,0.00010499,2]
[352443803,1739111441261,-500.0,0.00010499,2]
[352443805,1739111441271,-500.0,0.00010499,2]
[352443807,1739111441280,-500.0,0.00010499,2]
[352443809,1739111441290,-500.0,0.00010499,2]
[352443811,1739111441299,-500.0,0.00010499,2]
[352443813,1739111441309,-500.0,0.00010499,2]
[352443815,1739111441318,-500.0,0.00010499,2]
[352443817,1739111441328,-500.0,0.00010499,2]
[352443819,1739111441337,-500.0,0.00010499,2]
[352443821,1739111441346,-500.0,0.00010499,2]
[352443823,1739111441355,-500.0,0.00010499,2]
[352443825,1739111441364,-500.0,0.00010499,2]
[352443827,1739111441374,-500.0,0.00010499,2]
[352443829,1739111441383,-500.0,0.00010499,2]
[352443831,1739111441392,-338.7901449,0.00010499,2]
[352443833,1739111441402,-3777.71016141,0.000105,2]
[352443835,1739111441414,-3738.358279,0.000105,2]
[352445810,1739111461817,7799.06383892,0.00017,120]
[352450442,1739112632045,-761.59404433,8.882e-05,2]
[352450444,1739112632054,-1700.0,8.972e-05,2]
[352450446,1739112632064,-920.056,0.0001029,2]
[352450448,1739112632073,-1700.0,0.00010342,2]
[352450451,1739112632084,-300.0,0.00010399,2]
[352450453,1739112632093,-10759.84403816,0.000104,2]
[352450455,1739112632102,-500.0,0.00010473,2]
[352450457,1739112632111,-506.22957015,0.00010473,2]
[352450459,1739112632120,-546.97868863,0.00010473,2]
[352450461,1739112632130,-500.0,0.00010473,2]
[352450463,1739112632139,-500.0,0.00010473,2]
[352450465,1739112632147,-501.35059603,0.00010473,2]
[352450467,1739112632157,-358.49383526,0.00010473,2]
[352450469,1739112632166,-502.09484924,0.00010473,2]
[352450471,1739112632176,-500.0,0.00010473,2]
[352450473,1739112632185,-504.33934592,0.00010473,2]
[352450475,1739112632194,-500.0,0.00010473,2]
[352450477,1739112632203,-504.53299692,0.00010473,2]
[352450479,1739112632213,-508.00561803,0.00010473,2]
[352450481,1739112632222,-163.59993972,0.00010473,2]
[352450483,1739112632231,-500.78145389,0.00010473,2]
[352450485,1739112632240,-500.0,0.00010473,2]
[352450487,1739112632250,-500.0,0.00010473,2]
[352450489,1739112632259,-500.0,0.00010473,2]
[352450491,1739112632269,-500.0,0.00010473,2]
[352450493,1739112632278,-500.0,0.00010473,2]
[352450495,1739112632287,-500.0,0.00010473,2]
[352450497,1739112632297,-500.0,0.00010499,2]
[352450499,1739112632306,-276.0579023,0.00010499,2]
[352450501,1739112632316,-21011.04112142,0.000105,2]
[352450503,1739112632327,-4614.75184332,0.000105,2]
[352451075,1739112637896,-5109.81376523,0.000105,2]
[352451077,1739112637907,-844.19082374,0.000105,2]
[352451079,1739112637919,-2990.084995,0.000105,2]
[352451081,1739112637931,-3157.4254304,0.000105,2]
[352451083,1739112637943,-8143.08728793,0.000105,2]
[352451266,1739112640031,-586.54267536,0.000105,2]
[352451268,1739112640042,-453.40201646,0.000105,2]
[352451272,1739112640076,-892.5796797,0.000105,2]
[352451278,1739112640117,-354.24395731,0.000105,2]
[352451517,1739112642969,-657.04744447,0.000105,2]
[352451606,1739112646037,-8791.72284094,0.000105,2]
[352451631,1739112792488,3000.0,0.00014,30]
[352451632,1739112792823,3000.0,0.0001401,30]
[352451633,1739112793184,3000.0,0.0001402,30]
[352451634,1739112793585,3000.0,0.0001403,30]
[352451662,1739113832276,-2000.0,8.447e-05,2]
[352451866,1739113838170,-2528.30363825,8.447e-05,2]
[352451885,1739113838346,-471.69636175,8.447e-05,2]
[352451887,1739113838356,-377.6546755,8.532e-05,2]
[352451889,1739113838365,-1500.0,8.972e-05,2]
[352451891,1739113838375,-300.0,9.024e-05,2]
[352451895,1739113838385,-39458.278334,9.025e-05,2]
[352451897,1739113838394,-4686.79807011,9.218e-05,2]
[352451900,1739113838406,-657.25503674,9.218e-05,2]
[352452083,1739113840326,-629.17702365,9.218e-05,2]
[352452085,1739113840341,-1076.5764493,9.218e-05,2]
[352452090,1739113840377,-575.20384045,9.218e-05,2]
[352452266,1739113843312,-5950.33882149,9.218e-05,2]
[352452268,1739113843326,-11092.48068316,9.218e-05,2]
[352452270,1739113843335,-420.0,9.926e-05,2]
[352452272,1739113843346,-1500.0,0.00010342,2]
[352452274,1739113843355,-736.045,0.00010342,2]
[352452276,1739113843365,-116.32363869,0.00010385,2]
[352452428,1739113846170,-215.8194901,9.93e-05,2]
[352452429,1739113846180,-154.5897035,9.93e-05,2]
[352452430,1739113846190,-309.0748621,0.000104,2]
[352452431,1739113846199,-153.0,0.000104,2]
[352452432,1739113846209,-154.5897035,0.000104,2]
[352452433,1739113846219,-500.0,0.00010473,2]
[352452434,1739113846229,-175.6762408,0.00010473,2]
[352452435,1739113846242,-324.3237592,0.00010473,2]
[352452436,1739113846251,-500.0,0.00010473,2]
[352452437,1739113846260,-570.16915795,0.00010473,2]
[352452438,1739113846270,-500.0,0.00010473,2]
[352452439,1739113846279,-500.0,0.00010473,2]
[352452440,1739113846289,-91.43208285,0.00010473,2]
[352452441,1739114500039,202.6356212,7.971e-05,2]
[352452442,1739114610604,5000.0,8.003e-05,2]
[352452443,1739114625911,5000.0,8.003e-05,2]
[352452444,1739114642231,151.0165117,8.003e-05,2]
[352452451,1739114755488,4844.42798347,7.83e-05,2]
[352452452,1739114755523,2233.48334393,7.83e-05,2]
[352452455,1739114912948,2576.61798285,8.003e-05,2]
[352452498,1739115033046,-300.0,8.061e-05,2]
[352452500,1739115033056,-24900.0,8.062e-05,2]
[352452502,1739115033066,-514.951269,8.1e-05,2]
[352452504,1739115033076,-6876.0,8.1e-05,2]
[352452507,1739115033096,-6876.0,8.1e-05,2]
[352452510,1739115033107,-6876.0,8.1e-05,2]
[352452512,1739115033118,-6876.0,8.1e-05,2]
[352452514,1739115033129,-6876.0,8.1e-05,2]
[352452516,1739115033140,-3816.54819281,8.1e-05,2]
[352452518,1739115033154,-2000.0,8.1e-05,2]
[352452580,1739115038228,-1059.45180719,8.1e-05,2]
[352452582,1739115038238,-514.951269,8.1e-05,2]
[352452584,1739115038247,-250.0,8.243e-05,2]
[352452586,1739115038257,-209.96488531,8.518e-05,2]
[352452588,1739115038267,-2143.7556584,8.735e-05,2]
[352452590,1739115038276,-420.0,8.867e-05,2]
[352452592,1739115038285,-2000.0,8.972e-05,2]
[352452594,1739115038295,-818.85,8.972e-05,2]
[352452596,1739115038305,-514.951269,9.271e-05,2]
[352452598,1739115038315,-514.951269,9.271e-05,2]
[352452600,1739115038325,-3265.26190532,9.271e-05,2]
[352452602,1739115038337,-1188.01018729,9.271e-05,2]
[352452604,1739115038349,-2304.93798001,9.271e-05,2]
[352452623,1739115038520,-12977.5710584,9.271e-05,2]
[352452800,1739115040403,-2624.01999998,9.271e-05,2]
[352452806,1739115040450,-3946.1870952,9.271e-05,2]
[352452808,1739115040460,-2373.9197141,9.359e-05,2]
[352452810,1739115040470,-709.4653344,9.641e-05,2]
[352452812,1739115040479,-215.8194901,9.678e-05,2]
[352452814,1739115040488,-224.3768216,9.678e-05,2]
[352452816,1739115040498,-165.9610248,9.678e-05,2]
[352452818,1739115040508,-153.0,9.678e-05,2]
[352452820,1739115040517,-587.0,9.753e-05,2]
[352452822,1739115040526,-500.0,9.777e-05,2]
[352452824,1739115040536,-500.0,9.777e-05,2]
[352452826,1739115040545,-500.0,9.777e-05,2]
[352452828,1739115040555,-282.97522015,9.777e-05,2]
[352452830,1739115040565,-500.0,9.777e-05,2]
[352452832,1739115040575,-309.16171092,9.777e-05,2]
[352452834,1739115040584,-200.0,9.777e-05,2]
[352452836,1739115040593,-500.0,9.777e-05,2]
[352452838,1739115040603,-500.0,9.777e-05,2]
[352452840,1739115040613,-500.0,9.777e-05,2]
[352452842,1739115040622,-406.46081508,9.777e-05,2]
[352452844,1739115040632,-500.0,9.777e-05,2]
[352452846,1739115040641,-500.0,9.777e-05,2]
[352452848,1739115040651,-500.0,9.777e-05,2]
[352452850,1739115040661,-501.61593999,9.777e-05,2]
[352452852,1739115040672,-500.0,9.777e-05,2]
[352452854,1739115040685,-500.0,9.777e-05,2]
[352452856,1739115040694,-500.0,9.777e-05,2]
[352452858,1739115040703,-500.0,9.777e-05,2]
[352452860,1739115040712,-500.0,9.777e-05,2]
[352452862,1739115040722,-500.0,9.777e-05,2]
[352452864,1739115040731,-500.0,9.777e-05,2]
[352452866,1739115040741,-500.0,9.777e-05,2]
[352452868,1739115040751,-500.0,9.777e-05,2]
[352452870,1739115040760,-300.0,9.777e-05,2]
[352452872,1739115040770,-500.0,9.777e-05,2]
[352452874,1739115040779,-172.64175669,9.778e-05,2]
[352452876,1739115040791,-154.5897035,9.778e-05,2]
[352452878,1739115040800,-215.8194901,9.778e-05,2]
[352452880,1739115040809,-215.8194901,9.778e-05,2]
[352452882,1739115040819,-154.5897035,9.778e-05,2]
[352452884,1739115040828,-154.5897035,9.778e-05,2]
[352452886,1739115040838,-215.8194901,9.778e-05,2]
[352452888,1739115040847,-154.5897035,9.778e-05,2]
[352452890,1739115040856,-215.8194901,9.778e-05,2]
[352452892,1739115040866,-215.8194901,9.778e-05,2]
[352452894,1739115040876,-154.5897035,9.778e-05,2]
[352452896,1739115040885,-154.5897035,9.778e-05,2]
[352452898,1739115040895,-215.8194901,9.778e-05,2]
[352452900,1739115040904,-154.5897035,9.778e-05,2]
[352452902,1739115040914,-262.6927775,9.941e-05,2]
[352452904,1739115040923,-156.345,9.97e-05,2]
[352452906,1739115040934,-154.5897035,9.97e-05,2]
[352452908,1739115040946,-215.8194901,9.97e-05,2]
[352452910,1739115040956,-172.64175668,0.00010039,2]
[352452912,1739115040965,-514.951269,0.00010054,2]
[352452914,1739115040974,-514.951269,0.00010054,2]
[352452916,1739115040983,-514.951269,0.00010054,2]
[352452918,1739115040992,-514.951269,0.00010054,2]
[352452920,1739115041002,-154.5897035,0.00010055,2]
[352452922,1739115041011,-215.8194901,0.00010055,2]
[352452924,1739115041020,-154.5897035,0.00010055,2]
[352452926,1739115041029,-215.8194901,0.00010055,2]
[352452928,1739115041039,-215.8194901,0.00010055,2]
[352452930,1739115041048,-215.8194901,0.00010055,2]
[352452932,1739115041057,-210.0100968,0.00010055,2]
[352452934,1739115041066,-514.951269,0.00010078,2]
[352452936,1739115041077,-514.951269,0.00010078,2]
[352452938,1739115041087,-308.8657723,0.00010078,2]
[352452940,1739115041096,-431.5915371,0.00010078,2]
[352452942,1739115041106,-215.8194901,0.00010078,2]
[352452944,1739115041115,-154.5897035,0.00010078,2]
[352452946,1739115041125,-2000.0,0.00010342,2]
[352452948,1739115041135,-354.0951525,0.000104,2]
[352452950,1739115041146,-215.8194901,0.000104,2]
[352452952,1739115041157,-154.5897035,0.000104,2]
[352452954,1739115041167,-172.64175668,0.000104,2]
[352452956,1739115041178,-500.0,0.00010473,2]
[352452958,1739115041188,-162.80473868,0.00010473,2]
[352452960,1739115041198,-614.78388802,0.00010473,2]
[352452962,1739115041210,-500.0,0.00010473,2]
[352452964,1739115041221,-267.84792423,0.00010473,2]
[352452966,1739115041230,-500.0,0.00010473,2]
[352452968,1739115041240,-500.0,0.00010473,2]
[352452970,1739115041249,-500.0,0.00010473,2]
[352452972,1739115041259,-500.0,0.00010473,2]
[352452974,1739115041268,-635.40105832,0.00010473,2]
[352452976,1739115041277,-151.0,0.00010473,2]
[352452978,1739115041287,-500.0,0.00010473,2]
[352452980,1739115041297,-500.0,0.00010473,2]
[352452982,1739115041308,-500.0,0.00010473,2]
[352452984,1739115041317,-500.0,0.00010473,2]
[352452986,1739115041327,-397.8577193,0.00010473,2]
[352452988,1739115041337,-500.0,0.00010473,2]
[352452990,1739115041346,-500.0,0.00010473,2]
[352452992,1739115041356,-500.0,0.00010473,2]
[352452994,1739115041366,-600.61371956,0.00010473,2]
[352452996,1739115041375,-219.35186006,0.00010473,2]
[352452998,1739115041384,-253.16990486,0.00010473,2]
[352453000,1739115041394,-500.0,0.00010473,2]
[352453002,1739115041403,-500.0,0.00010473,2]
[352453004,1739115041412,-500.0,0.00010473,2]
[352453006,1739115041422,-168.06785083,0.00010473,2]
[352453008,1739115041432,-152.12718243,0.00010473,2]
[352453010,1739115041441,-500.0,0.00010473,2]
[352453012,1739115041451,-159.05721855,0.00010473,2]
[352453014,1739115041460,-500.0,0.00010473,2]
[352453016,1739115041470,-540.15540604,0.00010473,2]
[352453018,1739115041479,-500.0,0.00010473,2]
[352453020,1739115041488,-218.17082428,0.00010473,2]
[352453022,1739115041498,-514.951269,0.00010473,2]
[352453024,1739115041507,-514.951269,0.00010473,2]
[352453026,1739115041517,-151.0,0.00010498,2]
[352453028,1739115041526,-151.0,0.00010498,2]
[352453030,1739115041536,-151.0,0.00010498,2]
[352453032,1739115041546,-156.9689655,0.00010499,2]
[352453034,1739115041556,-253.66747766,0.00010499,2]
[352453036,1739115041566,-23235.77145272,0.00010499,2]
[352453042,1739115041698,-55547.23776353,0.00010499,2]
[352453208,1739115043641,-563.06372748,0.00010499,2]
[352453629,1739115111055,417.96655603,7.961e-05,2]
[352453630,1739115415806,-502.0,8.872e-05,2]
[352453631,1739115492768,-850.0,8.872e-05,2]
[352453717,1739116232734,-250.0,8.635e-05,2]
[352453719,1739116232743,-582.28218044,8.641e-05,2]
[352453721,1739116232755,-595.21511216,8.641e-05,2]
[352453723,1739116232766,-3853.12825063,8.872e-05,2]
[352453725,1739116232775,-2200.0,8.972e-05,2]
[352453727,1739116232784,-780.2937418,9.323e-05,2]
[352453729,1739116232794,-300.0,9.43e-05,2]
[352453731,1739116232803,-24900.0,9.431e-05,2]
[352453733,1739116232813,-154.5897035,9.44e-05,2]
[352453735,1739116232822,-354.8080865,9.641e-05,2]
[352453737,1739116232831,-215.8194901,9.778e-05,2]
[352453739,1739116232840,-354.8080865,9.841e-05,2]
[352453741,1739116232850,-839.51433284,9.841e-05,2]
[352453743,1739116232859,-306.0,9.978e-05,2]
[352453745,1739116232868,-7629.69956445,0.00010001,2]
[352453747,1739116232878,-2200.0,0.00010342,2]
[352453749,1739116232887,-420.0,0.00010373,2]
[352453751,1739116232896,-11340.07,0.000104,2]
[352453753,1739116232906,-500.0,0.00010473,2]
[352453755,1739116232915,-502.60764201,0.00010473,2]
[352453757,1739116232924,-500.0,0.00010473,2]
[352453759,1739116232934,-500.0,0.00010473,2]
[352453761,1739116232944,-595.33435418,0.00010473,2]
[352453763,1739116232953,-153.76832343,0.00010473,2]
[352453765,1739116232963,-500.19739299,0.00010473,2]
[352453767,1739116232972,-500.0,0.00010473,2]
[352453769,1739116232981,-500.0,0.00010473,2]
[352453771,1739116232991,-500.0,0.00010473,2]
[352453773,1739116233001,-500.0,0.00010473,2]
[352453786,1739116233122,-655.08,0.00010473,2]
[352453789,1739116233138,-300.0,0.00010498,2]
[352453791,1739116233150,-500.0,0.00010498,2]
[352453793,1739116233160,-500.0,0.00010498,2]
[352453795,1739116233170,-500.0,0.00010498,2]
[352453797,1739116233179,-500.0,0.00010498,2]
[352453799,1739116233189,-500.0,0.00010498,2]
[352453801,1739116233198,-500.0,0.00010498,2]
[352453803,1739116233208,-500.0,0.00010498,2]
[352453805,1739116233218,-500.0,0.00010498,2]
[352453807,1739116233229,-500.0,0.00010498,2]
[352453809,1739116233239,-500.0,0.00010498,2]
[352453811,1739116233248,-500.0,0.00010498,2]
[352453813,1739116233258,-500.0,0.00010498,2]
[352453815,1739116233268,-500.0,0.00010498,2]
[352453817,1739116233278,-500.0,0.00010498,2]
[352453819,1739116233287,-500.0,0.00010498,2]
[352453821,1739116233297,-500.0,0.00010498,2]
[352453823,1739116233307,-500.0,0.00010498,2]
[352453825,1739116233318,-500.0,0.00010498,2]
[352453827,1739116233329,-500.0,0.00010498,2]
[352453829,1739116233340,-500.0,0.00010498,2]
[352453831,1739116233349,-537.17690204,0.00010498,2]
[352453833,1739116233358,-500.0,0.00010498,2]
[352453835,1739116233368,-500.0,0.00010498,2]
[352453837,1739116233378,-500.0,0.00010498,2]
[352453839,1739116233387,-500.0,0.00010498,2]
[352453841,1739116233397,-500.0,0.00010498,2]
[352453843,1739116233407,-500.0,0.00010498,2]
[352453845,1739116233417,-500.0,0.00010498,2]
[352453847,1739116233427,-500.0,0.00010498,2]
[352453849,1739116233437,-500.0,0.00010498,2]
[352453851,1739116233446,-428.30663073,0.00010498,2]
[352453853,1739116233456,-500.0,0.00010498,2]
[352453855,1739116233466,-500.0,0.00010498,2]
[352453857,1739116233476,-273.42685616,0.00010498,2]
[352453859,1739116233486,-500.0,0.00010498,2]
[352453861,1739116233496,-500.0,0.00010498,2]
[352453862,1739116233505,-500.0,0.00010498,2]
[352453864,1739116233515,-500.0,0.00010498,2]
[352453866,1739116233525,-500.0,0.00010498,2]
[352453868,1739116233535,-500.0,0.00010498,2]
[352453871,1739116233546,-500.0,0.00010498,2]
[352453873,1739116233555,-500.0,0.00010498,2]
[352453874,1739116233565,-500.0,0.00010498,2]
[352453877,1739116233575,-500.0,0.00010498,2]
[352453879,1739116233585,-500.0,0.00010498,2]
[352453880,1739116233594,-500.0,0.00010498,2]
[352453883,1739116233605,-500.0,0.00010498,2]
[352453885,1739116233616,-500.0,0.00010498,2]
[352453887,1739116233626,-500.0,0.00010498,2]
[352453889,1739116233636,-500.0,0.00010498,2]
[352453891,1739116233649,-500.0,0.00010498,2]
[352453893,1739116233659,-500.0,0.00010498,2]
[352453895,1739116233669,-500.0,0.00010498,2]
[352453897,1739116233679,-500.0,0.00010498,2]
[352453899,1739116233689,-500.0,0.00010498,2]